bitfinex-derivatives/quotes_BNBF0:USTF0_20250603
["timestamp","ask_amount","ask_price","bid_price","bid_amount"]
[1748960565501,3.74431277,666.23,665.1,0.47613497]
[1748960565701,3.74431277,666.25,665.1,0.47613497]
[1748960566202,3.74431277,666.25,665.09,0.47613497]
[1748960566602,3.74431277,666.26,665.11,0.47613497]
[1748960567304,3.74431277,666.26,665.1,0.47613497]
[1748960567507,3.74431277,666.26,664.91,0.7417529]
[1748960567508,3.74431277,666.26,665.12,0.47613497]
[1748960567705,3.74431277,666.26,665.13,0.47613497]
[1748960568407,3.74431277,666.27,665.14,0.47613497]
[1748960568606,3.74431277,666.27,665.15,0.47613497]
[1748960569203,3.74431277,666.27,665.14,0.47613497]
[1748960569504,3.74431277,666.27,664.91,0.7417529]
[1748960569708,5.24203787,666.54,664.92,1.3390112]
[1748960569904,0.30006151,666.53,664.93,1.33900668]
[1748960570104,0.30006151,666.53,664.94,1.33900215]
[1748960570309,0.30006151,666.53,664.95,1.03822314]
[1748960570508,0.30006151,666.53,664.96,1.03822314]
[1748960570710,0.30006151,666.53,664.97,1.03822314]
[1748960570909,0.30006151,666.53,664.98,1.03822314]
[1748960571110,0.30006151,666.53,664.99,1.03822314]
[1748960571305,0.30006151,666.53,664.94,0.30077901]
[1748960571306,0.30006151,666.53,665.0,1.03802395]
[1748960571505,0.30006151,666.53,664.94,0.30077901]
[1748960571506,0.30006151,666.53,665.01,1.03802395]
[1748960571811,0.30006151,666.53,664.94,0.30077901]
[1748960571812,0.30006151,666.53,665.02,1.03802395]
[1748960572012,0.30006151,666.53,665.03,1.33876226]
[1748960572212,0.30006151,666.53,665.04,1.33875774]
[1748960572507,0.30006151,666.53,665.05,1.33875321]
[1748960572716,0.30006151,666.53,665.06,1.33874869]
[1748960572908,0.30006151,666.53,665.07,0.30072022]
[1748960576214,0.30006151,666.53,665.08,1.03756536]
[1748960576511,0.30006151,666.53,665.09,0.30071118]
[1748960578418,0.30006151,666.53,665.18,0.47613497]
[1748960578419,3.74431277,666.51,665.18,0.47613497]
[1748960578916,3.74431277,666.51,665.09,0.30071118]
[1748960578917,3.74431277,666.51,665.16,0.47613497]
[1748960579520,3.74431277,666.41,665.25,0.47613497]
[1748960579817,3.74431277,666.41,665.28,0.47613497]
[1748960580011,3.74431277,666.37,665.28,0.47613497]
[1748960580213,3.74431277,666.37,665.3,0.47613497]
[1748960580412,3.74431277,666.35,665.29,0.47613497]
[1748960580816,3.74431277,666.36,665.29,0.47613497]
[1748960581018,3.74431277,666.36,665.27,0.47613497]
[1748960581212,3.74431277,666.38,665.27,0.47613497]
[1748960581913,3.74431277,666.37,665.28,0.47613497]
[1748960582114,3.74431277,666.37,665.27,0.47613497]
[1748960582413,3.74431277,666.45,665.12,0.47613497]
[1748960582618,3.74431277,666.45,665.09,0.30071118]
[1748960583118,3.74431277,666.37,665.09,0.30071118]
[1748960583617,3.74431277,666.35,665.09,0.30071118]
[1748960584013,3.74431277,666.33,665.09,0.30071118]
[1748960584617,3.74431277,666.31,665.09,0.30071118]
[1748960585017,3.74431277,666.34,665.09,0.30071118]
[1748960585518,3.74431277,666.33,665.09,0.30071118]
[1748960586016,3.74431277,666.32,665.09,0.30071118]
[1748960586719,3.74431277,666.25,665.09,0.30071118]
[1748960587818,3.74431277,666.24,665.09,0.30071118]
[1748960588213,3.74431277,666.23,665.09,0.30071118]
[1748960588720,3.74431277,666.21,665.09,0.30071118]
[1748960589115,3.74431277,666.24,665.09,0.30071118]
[1748960589721,3.74431277,666.23,665.09,0.30071118]
[1748960590120,3.74431277,666.28,665.09,0.30071118]
[1748960591218,3.74431277,666.23,665.09,0.30071118]
[1748960592016,3.74431277,666.22,665.09,0.30071118]
[1748960592419,3.74431277,666.23,665.09,0.30071118]
[1748960592818,3.74431277,666.22,665.09,0.30071118]
[1748960593815,3.74431277,666.21,665.09,0.30071118]
[1748960594616,3.74431277,666.17,665.09,0.30071118]
[1748960595218,3.74431277,666.18,665.09,0.30071118]
[1748960596421,3.74431277,666.15,665.09,0.30071118]
[1748960597422,3.74431277,666.14,665.09,0.30071118]
[1748960598016,3.74431277,666.16,665.09,0.30071118]
[1748960598421,3.74431277,666.15,665.09,0.30071118]
[1748960599022,3.74431277,666.12,665.09,0.30071118]
[1748960599522,3.74431277,666.17,665.09,0.30071118]
[1748960600319,3.74431277,666.1,665.09,0.30071118]
[1748960601422,5.24203787,666.39,665.09,0.30071118]
[1748960601423,3.74431277,666.13,665.09,0.30071118]
[1748960603529,3.74431277,666.14,665.09,0.30071118]
[1748960603921,3.74431277,666.21,665.09,0.30071118]
[1748960604326,3.74431277,666.2,665.09,0.30071118]
[1748960604925,3.74431277,666.23,665.09,0.30071118]
[1748960605327,3.74431277,666.17,665.09,0.30071118]
[1748960605928,3.74431277,666.23,665.09,0.30071118]
[1748960607326,3.74431277,666.28,665.09,0.30071118]
[1748960610032,0.30006151,666.53,665.09,0.30071118]
[1748960617336,3.74431277,666.44,665.09,0.30071118]
[1748960617537,0.30010653,666.43,665.09,0.30071118]
[1748960618036,4.0444193,666.43,665.09,0.30071118]
[1748960619237,3.74431277,666.41,665.09,0.30071118]
[1748960619538,0.30012004,666.4,665.09,0.30071118]
[1748960619739,3.74431277,666.35,665.09,0.30071118]
[1748960620736,3.74431277,666.34,665.09,0.30071118]
[1748960621138,3.74431277,666.31,665.09,0.30071118]
[1748960622538,3.74431277,666.35,665.09,0.30071118]
[1748960623742,3.74431277,666.34,665.09,0.30071118]
[1748960625242,3.74431277,666.36,665.09,0.30071118]
[1748960625444,4.04445083,666.36,665.09,0.30071118]
[1748960625648,3.74431277,666.28,665.09,0.30071118]
[1748960626647,3.74431277,666.26,665.09,0.30071118]
[1748960627048,3.74431277,666.25,665.09,0.30071118]
[1748960627546,3.74431277,666.24,665.09,0.30071118]
[1748960628343,3.74431277,666.23,665.09,0.30071118]
[1748960628749,3.74431277,666.23,665.1,0.47613497]
[1748960628948,3.74431277,666.15,665.1,0.47613497]
[1748960629343,0.30013806,666.36,665.1,0.47613497]
[1748960629344,3.74431277,666.14,665.1,0.47613497]
[1748960629546,3.74431277,666.14,665.11,0.47613497]
[1748960629947,3.74431277,666.13,665.11,0.47613497]
[1748960630143,3.74431277,666.13,665.09,0.30071118]
[1748960630144,3.74431277,666.13,665.09,0.77684615]
[1748960630345,3.74431277,666.13,665.09,0.30071118]
[1748960630543,3.74431277,666.13,665.1,0.47613497]
[1748960630748,3.74431277,666.09,665.1,0.47613497]
[1748960631149,3.74431277,666.12,665.1,0.47613497]
[1748960631446,3.74431277,666.12,665.11,0.47613497]
[1748960631646,3.74431277,666.09,665.14,0.47613497]
[1748960632451,3.74431277,666.09,665.15,0.47613497]
[1748960632750,3.74431277,666.07,665.15,0.47613497]
[1748960633551,3.74431277,666.08,665.14,0.47613497]
[1748960633948,3.74431277,666.07,665.14,0.47613497]
[1748960634150,3.74431277,666.07,665.16,0.47613497]
[1748960634349,3.74431277,666.07,665.09,0.30071118]
[1748960634350,3.74431277,666.04,665.17,0.47613497]
[1748960634551,3.74431277,666.04,665.09,0.30071118]
[1748960634849,3.74431277,666.14,665.09,0.30071118]
[1748960635753,3.74431277,666.12,665.09,0.30071118]
[1748960636851,3.74431277,666.11,665.09,0.77684615]
[1748960637248,3.74431277,666.12,665.1,0.47613497]
[1748960637650,3.74431277,666.12,665.09,0.30071118]
[1748960637651,3.74431277,666.11,665.11,0.47613497]
[1748960638547,3.74431277,666.1,665.12,0.47613497]
[1748960638747,3.74431277,666.1,665.09,0.30071118]
[1748960638947,3.74431277,666.33,665.09,0.30071118]
[1748960639148,4.04446434,666.33,665.09,0.30071118]
[1748960640448,3.74431277,666.32,665.09,0.30071118]
[1748960641350,0.30015157,666.33,665.09,0.30071118]
[1748960641752,4.04446434,666.33,665.09,0.30071118]
[1748960642357,3.74431277,666.31,665.09,0.30071118]
[1748960642953,0.30015157,666.33,665.09,0.30071118]
[1748960645363,3.75273339,666.28,665.15,0.47653394]
[1748960645561,3.75273339,666.28,665.13,0.47653394]
[1748960646562,3.75273339,666.28,665.12,0.47653394]
[1748960647064,3.75273339,666.28,665.25,0.47653394]
[1748960647262,3.75273339,666.15,665.25,0.47653394]
[1748960647459,3.75273339,666.15,665.09,0.30071118]
[1748960647460,3.75273339,666.15,665.24,0.47653394]
[1748960648462,3.75273339,666.15,665.23,0.47653394]
[1748960648663,3.75273339,666.16,665.23,0.47653394]
[1748960649057,3.75273339,666.16,665.24,0.47653394]
[1748960649260,3.75273339,666.16,665.14,0.47653394]
[1748960649461,3.75273339,666.25,665.14,0.47653394]
[1748960650064,3.75273339,666.25,665.09,0.30071118]
[1748960650360,0.30015157,666.33,665.09,0.30071118]
[1748960652667,0.30015157,666.33,665.1,1.04070656]
[1748960652873,0.30015157,666.33,665.09,0.30071118]
[1748960653074,0.30015157,666.33,665.1,1.04070731]
[1748960653375,0.30015157,666.33,665.09,0.30071118]
[1748960653575,0.30015157,666.33,665.1,1.04058103]
[1748960653775,0.30015157,666.33,665.11,1.04058103]
[1748960653975,0.30015157,666.33,665.09,0.30071118]
[1748960654275,0.30015157,666.33,665.1,1.0403825]
[1748960654471,0.30015157,666.33,665.11,1.04024873]
[1748960654672,0.30015157,666.33,665.09,0.30071118]
[1748960654875,0.30015157,666.33,665.1,1.04026505]
[1748960655076,0.30015157,666.33,665.09,0.30071118]
[1748960655275,0.30015157,666.33,665.1,1.04026223]
[1748960655475,0.30015157,666.33,665.09,0.30071118]
[1748960655678,0.30015157,666.33,665.1,1.04011751]
[1748960655980,0.30015157,666.33,665.11,0.30070213]
[1748960658077,0.30015157,666.33,665.24,0.47653394]
[1748960658377,3.75273339,666.27,665.26,0.47653394]
[1748960658772,3.75273339,666.27,665.3,0.47653394]
[1748960658977,3.75273339,666.23,665.31,0.47653394]
[1748960659172,3.75273339,666.23,665.11,0.30070213]
[1748960659376,0.30015157,666.33,665.11,0.30070213]
[1748960660380,0.30015157,666.33,665.12,1.03912487]
[1748960660574,0.30015157,666.33,665.11,0.30070213]
[1748960660774,0.30015157,666.33,664.91,0.7417529]
[1748960660775,0.30015157,666.33,665.13,0.30069309]
[1748960670684,0.30015157,666.33,665.26,0.47653394]
[1748960670884,3.75273339,666.25,665.26,0.47653394]
[1748960671284,3.75273339,666.25,665.13,0.30069309]
[1748960671285,3.75273339,666.26,665.28,0.47653394]
[1748960671687,3.75273339,666.26,665.29,0.47653394]
[1748960672393,3.75273339,666.26,665.3,0.47653394]
[1748960673193,3.75273339,666.26,665.31,0.47653394]
[1748960673393,3.75273339,666.26,665.32,0.47653394]
[1748960674193,3.75273339,666.26,665.2,0.47653394]
[1748960674394,3.75273339,666.26,665.21,0.47653394]
[1748960674595,0.30015157,666.33,665.21,0.47653394]
[1748960675494,0.30015157,666.33,665.25,0.47653394]
[1748960676693,0.30015157,666.33,665.27,0.47653394]
[1748960677593,0.30015157,666.33,665.29,0.47653394]
[1748960678389,0.30015157,666.33,665.3,0.47653394]
[1748960679193,4.05288496,666.33,665.31,0.47653394]
[1748960679594,0.30015157,666.33,665.3,0.47653394]
[1748960680395,0.30015157,666.33,665.32,0.47653394]
[1748960680596,0.30015157,666.33,665.13,0.30069309]
[1748960686000,3.75273339,666.25,665.13,0.30069309]
[1748960686295,3.75273339,666.22,665.13,0.30069309]
[1748960687001,3.75273339,666.17,665.13,0.30069309]
[1748960689698,3.75273339,666.14,665.13,0.30069309]
[1748960690098,3.75273339,666.15,665.13,0.30069309]
[1748960690501,0.30015157,666.33,665.13,0.30069309]
[1748960690502,3.75273339,666.14,665.13,0.30069309]
[1748960692101,3.75273339,666.12,665.13,0.30069309]
[1748960693105,3.75273339,666.11,665.13,0.30069309]
[1748960694300,3.75273339,666.1,665.13,0.30069309]
[1748960694706,3.75273339,666.09,665.13,0.30069309]
[1748960695801,3.75273339,666.08,665.13,0.30069309]
[1748960696602,3.75273339,666.07,665.13,0.30069309]
[1748960697000,3.75273339,666.18,665.13,0.30069309]
[1748960697404,3.75273339,666.21,665.13,0.30069309]
[1748960697708,3.75273339,666.21,664.74,0.47653394]
[1748960697906,3.75273339,666.2,664.75,1.34177634]
[1748960698108,3.75273339,666.2,664.76,1.04091136]
[1748960698307,3.75273339,666.2,664.77,1.04099931]
[1748960698507,3.75273339,666.24,664.78,1.04099931]
[1748960698708,0.30019662,666.23,664.79,1.04099931]
[1748960698907,0.30019662,666.23,664.8,1.04099931]
[1748960699102,0.30019662,666.23,664.81,1.04099931]
[1748960699299,0.30019662,666.23,664.82,1.04099931]
[1748960699507,3.75273339,666.2,664.75,0.30086498]
[1748960699702,3.75273339,666.2,664.76,1.04047336]
[1748960699907,3.75273339,666.2,664.77,1.04047336]
[1748960700107,3.75273339,666.2,664.78,1.04047336]
[1748960700304,3.75273339,666.19,664.79,1.04047336]
[1748960700504,3.75273339,666.19,664.8,1.04047336]
[1748960700703,3.75273339,666.19,664.81,1.04047336]
[1748960700903,3.75273339,666.19,664.75,0.30086498]
[1748960701109,3.75273339,666.19,664.76,1.04010365]
[1748960701302,3.75273339,666.17,664.77,1.04006897]
[1748960701507,3.75273339,666.17,664.78,1.04006897]
[1748960701708,3.75273339,666.17,664.79,1.04006897]
[1748960701906,3.75273339,666.17,664.8,1.04006897]
[1748960702104,3.75273339,666.17,664.75,0.30086498]
[1748960702303,3.75273339,666.16,664.76,1.0397678]
[1748960702509,3.75273339,666.16,664.75,0.30086498]
[1748960702510,3.75273339,666.16,664.77,1.0397678]
[1748960702704,3.75273339,666.17,664.78,1.0397678]
[1748960702903,3.75273339,666.17,664.79,1.0397678]
[1748960703108,3.75273339,666.16,664.75,0.30086498]
[1748960703308,3.75273339,666.16,664.76,1.03962476]
[1748960703508,0.30019662,666.23,664.77,1.03962476]
[1748960703509,3.75273339,666.14,664.77,1.03962476]
[1748960703804,3.75273339,666.14,664.75,0.30086498]
[1748960704007,3.75273339,666.14,664.76,1.03949691]
[1748960704210,3.75273339,666.14,664.75,0.30086498]
[1748960704412,0.30019662,666.23,664.75,0.30086498]
[1748960721323,0.30019662,666.23,664.76,1.03817698]
[1748960721521,0.30019662,666.23,664.77,1.33903291]
[1748960721720,0.30019662,666.23,664.78,0.3008514]
[1748960722224,0.30019662,666.23,664.83,0.47637231]
[1748960722822,0.30019662,666.23,664.78,0.3008514]
[1748960723126,0.30019662,666.23,664.79,0.47637231]
[1748960724424,0.30019662,666.23,664.78,0.77722371]
[1748960725028,0.30019662,666.23,664.79,0.47637231]
[1748960725727,0.30019662,666.23,664.8,0.30084235]
[1748960728333,0.30019662,666.23,664.86,0.47637231]
[1748960728532,0.30019662,666.23,664.8,0.30084235]
[1748960728533,0.30019662,666.23,664.85,0.47637231]
[1748960729630,0.30019662,666.23,664.84,0.47637231]
[1748960729934,0.30019662,666.23,664.89,0.47637231]
[1748960730134,0.30019662,666.23,664.98,0.47637231]
[1748960730334,3.73597504,666.16,664.98,0.47637231]
[1748960730633,3.73597504,666.16,664.8,0.30084235]
[1748960730634,3.73597504,666.16,664.97,0.47637231]
[1748960731035,3.73597504,666.16,664.99,0.47637231]
[1748960731235,3.73597504,666.13,664.99,0.47637231]
[1748960731735,3.73597504,666.12,664.99,0.47637231]
[1748960732134,3.73597504,666.14,664.98,0.47637231]
[1748960732335,3.73597504,666.14,664.96,0.47637231]
[1748960732536,3.73597504,666.13,664.97,0.47637231]
[1748960733536,3.73597504,666.06,665.02,0.47637231]
[1748960733933,0.30019662,666.23,664.8,0.30084235]
[1748960734136,0.30019662,666.23,664.81,1.03982534]
[1748960734331,0.30019662,666.23,664.82,1.34065864]
[1748960734531,0.30019662,666.23,664.83,1.34065412]
[1748960734737,0.30019662,666.23,664.84,1.34064959]
[1748960734934,0.30019662,666.23,664.85,1.34064507]
[1748960735138,0.30019662,666.23,664.86,1.34064054]
[1748960735338,0.30019662,666.23,664.87,1.34063602]
[1748960735534,0.30019662,666.23,664.88,1.3406315]
[1748960735737,0.30019662,666.23,664.89,1.34062697]
[1748960735935,0.30019662,666.23,664.9,1.03982534]
[1748960736139,0.30019662,666.23,664.91,1.03982534]
[1748960736335,0.30019662,666.23,664.91,0.30079258]
[1748960736641,0.30019662,666.23,664.92,1.04099943]
[1748960736836,0.30019662,666.23,664.93,0.30078354]
[1748960738543,0.30019662,666.23,664.94,1.04154209]
[1748960738838,0.30019662,666.23,664.94,0.30077901]
[1748960740038,0.30019662,666.23,664.95,1.04197346]
[1748960740239,0.30019662,666.23,664.94,0.30077901]
[1748960740438,0.30019662,666.23,664.95,1.04230231]
[1748960740644,0.30019662,666.23,664.96,1.04230231]
[1748960740845,0.30019662,666.23,664.94,0.30077901]
[1748960741041,0.30019662,666.23,664.95,1.04228523]
[1748960741240,0.30019662,666.23,664.96,1.04228523]
[1748960741440,0.30019662,666.23,664.94,0.30077901]
[1748960741640,0.30019662,666.23,664.95,1.04209635]
[1748960741841,0.30019662,666.23,664.96,1.04209635]
[1748960742039,0.30019662,666.23,664.94,0.30077901]
[1748960742241,0.30019662,666.23,664.95,1.0420746]
[1748960742442,0.30019662,666.23,664.96,1.0420746]
[1748960742647,0.30019662,666.23,664.94,0.30077901]
[1748960742841,0.30019662,666.23,664.95,1.04206737]
[1748960743041,0.30019662,666.23,664.96,1.04206737]
[1748960743244,0.30019662,666.23,664.94,0.30077901]
[1748960743443,0.30019662,666.23,664.95,1.04210658]
[1748960743643,0.30019662,666.23,664.96,1.34287655]
[1748960743844,0.30019662,666.23,664.97,0.30076544]
[1748960746245,0.30019662,666.23,664.98,1.04297669]
[1748960746445,0.30019662,666.23,664.98,0.30076092]
[1748960749751,0.30019662,666.23,664.99,1.04280962]
[1748960749950,0.30019662,666.23,665.0,1.04280962]
[1748960750150,0.30019662,666.23,664.99,0.3007564]
[1748960750349,0.30019662,666.23,665.0,1.0431044]
[1748960750649,0.30019662,666.23,664.99,0.3007564]
[1748960750847,0.30019662,666.23,665.0,1.04306258]
[1748960751054,0.30019662,666.23,664.99,0.3007564]
[1748960751253,0.30019662,666.23,665.0,1.04310262]
[1748960751557,0.30019662,666.23,664.99,0.3007564]
[1748960751756,0.30019662,666.23,665.0,1.04295116]
[1748960751950,0.30019662,666.23,664.99,0.3007564]
[1748960752147,0.30019662,666.23,665.0,1.04295308]
[1748960752350,0.30019662,666.23,665.01,0.30074735]
[1748960753755,0.30019662,666.23,665.01,0.77711966]
[1748960754155,3.73597504,666.16,665.13,0.47637231]
[1748960754455,3.73597504,666.16,665.15,0.47637231]
[1748960754657,3.73597504,666.15,665.14,0.47637231]
[1748960755157,3.73597504,666.14,665.15,0.47637231]
[1748960756254,3.73597504,666.14,665.17,0.47637231]
[1748960756453,3.73597504,666.13,665.17,0.47637231]
[1748960756656,3.73597504,666.13,665.16,0.47637231]
[1748960756954,3.73597504,666.13,665.15,0.47637231]
[1748960757155,0.30019662,666.23,665.01,0.30074735]
[1748960759161,2.24689321,665.82,665.01,0.30074735]
[1748960760261,2.24689321,665.81,665.01,0.30074735]
[1748960761257,2.24689321,665.79,665.01,0.30074735]
[1748960762663,2.24689321,665.77,665.01,0.30074735]
[1748960763360,2.24689321,665.76,665.01,0.30074735]
[1748960763663,2.24689321,665.6,665.01,0.30074735]
[1748960764063,2.24689321,665.59,665.01,0.30074735]
[1748960764958,2.24689321,665.58,665.01,0.30074735]
[1748960765757,2.24689321,665.57,665.01,0.30074735]
[1748960765958,2.24689321,665.58,665.01,0.30074735]
[1748960766162,2.24689321,665.59,665.01,0.30074735]
[1748960766363,2.24689321,665.58,665.01,0.30074735]
[1748960766665,2.24689321,665.55,665.01,0.30074735]
[1748960767261,2.24689321,665.54,665.01,0.30074735]
[1748960768063,2.24689321,665.56,665.01,0.30074735]
[1748960769663,2.24689321,665.58,665.01,0.30074735]
[1748960770059,2.24689321,665.6,665.01,0.30074735]
[1748960770763,2.24689321,665.62,665.01,0.30074735]
[1748960771266,2.24689321,665.72,665.01,0.30074735]
[1748960771461,2.24689321,665.67,665.01,0.30074735]
[1748960771666,2.24689321,665.62,665.01,0.30074735]
[1748960771861,2.24689321,665.61,665.01,0.30074735]
[1748960772265,2.24689321,665.6,665.01,0.30074735]
[1748960772464,2.24689321,665.56,665.01,0.30074735]
[1748960772667,2.24689321,665.52,665.01,0.30074735]
[1748960772866,2.24689321,665.53,665.01,0.30074735]
[1748960773064,3.73597504,666.19,665.01,0.30074735]
[1748960773065,2.24689321,665.47,665.01,0.30074735]
[1748960773263,2.24689321,665.49,665.01,0.30074735]
[1748960773465,2.24689321,665.41,665.01,0.30074735]
[1748960774069,2.24689321,665.39,665.01,0.30074735]
[1748960774368,2.24689321,665.4,665.01,0.30074735]
[1748960774766,2.24689321,665.39,665.01,0.30074735]
[1748960775368,2.24689321,665.4,665.01,0.30074735]
[1748960775664,2.24689321,665.5,665.01,0.30074735]
[1748960775970,2.24689321,665.52,665.01,0.30074735]
[1748960776363,2.24689321,665.53,665.01,0.30074735]
[1748960776668,2.24689321,665.54,665.01,0.30074735]
[1748960777070,2.24689321,665.55,665.01,0.30074735]
[1748960777565,2.24689321,665.56,665.01,0.30074735]
[1748960777765,2.24689321,665.55,665.01,0.30074735]
[1748960778169,2.24689321,665.54,665.01,0.30074735]
[1748960778766,2.24689321,665.54,664.47,0.47637231]
[1748960778973,2.24689321,665.56,664.48,1.33448312]
[1748960779164,2.24689321,665.56,664.49,0.3009827]
[1748960779367,2.24689321,665.59,664.5,1.77317224]
[1748960779568,2.24689321,665.59,664.51,1.33446909]
[1748960779869,2.24689321,665.59,664.52,1.33446457]
[1748960780170,2.24689321,665.59,664.53,2.07413616]
[1748960780372,2.24689321,665.59,664.54,2.07413163]
[1748960780572,2.24689321,665.6,664.55,1.33445098]
[1748960780872,2.24689321,665.6,664.56,1.33444645]
[1748960781072,2.24689321,665.62,664.57,2.07411864]
[1748960781270,2.24689321,665.62,664.58,2.07411411]
[1748960781469,2.24689321,665.61,664.59,1.33443287]
[1748960781668,2.24689321,665.61,664.6,1.33442834]
[1748960781872,2.24689321,665.59,664.61,1.33442381]
[1748960782074,2.24689321,665.54,664.62,1.33441928]
[1748960782274,2.24689321,665.54,664.07,2.23542107]
[1748960782275,2.24689321,665.53,664.63,1.33441475]
[1748960782473,2.24689321,665.53,664.64,1.33441023]
[1748960782770,2.24689321,665.52,664.65,1.03349545]
[1748960782975,0.30019662,666.23,664.64,0.30091478]
[1748960782976,2.24689321,665.53,664.66,1.03349545]
[1748960783174,0.30019662,666.23,664.64,0.30091478]
[1748960783175,2.24689321,665.54,664.67,1.03329764]
[1748960783473,2.24689321,665.55,664.68,1.03329764]
[1748960783673,2.24689321,665.55,664.69,1.03329764]
[1748960783973,2.24689321,665.55,664.64,0.30091478]
[1748960784171,2.24689321,665.55,664.65,1.03290926]
[1748960784373,2.24689321,665.55,664.64,0.30091478]
[1748960784374,2.24689321,665.55,664.66,1.03290926]
[1748960784569,2.24689321,665.55,664.67,1.03290926]
[1748960784768,2.24689321,665.55,664.64,0.30091478]
[1748960784769,2.24689321,665.55,664.68,1.03290926]
[1748960784974,2.24689321,665.55,664.64,0.30091478]
[1748960785174,2.24689321,665.55,664.65,1.03283539]
[1748960785470,2.24689321,665.56,664.66,1.33374111]
[1748960785674,2.24689321,665.56,664.67,1.03283539]
[1748960785874,2.24689321,665.56,664.66,0.30090572]
[1748960786074,2.24689321,665.56,664.67,1.03271335]
[1748960786274,2.24689321,665.56,664.66,0.30090572]
[1748960787176,2.24689321,665.5,664.66,0.30090572]
[1748960787371,2.24689321,665.51,664.66,0.30090572]
[1748960787976,2.24689321,665.5,664.66,0.30090572]
[1748960788373,2.24689321,665.51,664.66,0.30090572]
[1748960788968,2.24689321,665.57,664.67,1.03227024]
[1748960789173,2.24689321,665.57,664.68,1.03227024]
[1748960789371,2.24689321,665.57,664.66,0.30090572]
[1748960789674,2.24689321,665.57,664.67,1.03220066]
[1748960789869,2.24689321,665.58,664.68,1.03322481]
[1748960790072,2.24689321,665.58,664.66,0.30090572]
[1748960790271,2.24689321,665.58,664.67,1.03322481]
[1748960790471,2.24689321,665.58,664.68,1.03322481]
[1748960790675,2.24689321,665.58,664.66,0.30090572]
[1748960790873,2.24689321,665.58,664.67,1.03315884]
[1748960791077,2.24689321,665.6,664.68,1.03315884]
[1748960791276,2.24689321,665.6,664.66,0.30090572]
[1748960791477,2.24689321,665.61,664.67,1.03315763]
[1748960791776,2.24689321,665.61,664.68,1.03315763]
[1748960791973,2.24689321,665.61,664.66,0.30090572]
[1748960792177,2.24689321,665.58,664.67,1.03307765]
[1748960792377,2.24689321,665.58,664.66,0.30090572]
[1748960792378,2.24689321,665.58,664.68,1.03307765]
[1748960792578,2.24689321,665.58,664.66,0.30090572]
[1748960792778,2.24689321,665.55,664.67,1.03301226]
[1748960792980,2.24689321,665.58,664.68,1.03300995]
[1748960793179,2.24689321,665.58,664.66,0.30090572]
[1748960793379,2.24689321,665.58,664.67,1.0330099]
[1748960793574,2.24689321,665.57,664.66,0.30090572]
[1748960793881,2.24689321,665.49,664.66,0.30090572]
[1748960794081,2.24689321,665.48,664.66,0.30090572]
[1748960794281,2.24689321,665.49,664.66,0.30090572]
[1748960795180,2.24689321,665.51,664.66,0.30090572]
[1748960796375,2.24689321,665.47,664.66,0.30090572]
[1748960797076,2.24689321,665.43,664.66,0.30090572]
[1748960797478,2.24689321,665.44,664.66,0.30090572]
[1748960797880,2.24689321,665.43,664.66,0.30090572]
[1748960798079,0.30019662,666.23,664.66,0.30090572]
[1748960798080,2.24689321,665.46,664.66,0.30090572]
[1748960798485,2.24689321,665.47,664.66,0.30090572]
[1748960798879,2.24689321,665.46,664.66,0.30090572]
[1748960799079,2.24689321,665.45,664.66,0.30090572]
[1748960799581,2.24689321,665.46,664.66,0.30090572]
[1748960799782,2.24689321,665.42,664.69,0.47637231]
[1748960799976,2.24689321,665.46,664.7,0.30088761]
[1748960800177,2.24689321,665.47,664.7,0.30088761]
[1748960800380,2.24689321,665.45,664.7,0.30088761]
[1748960801176,2.24689321,665.43,664.7,0.30088761]
[1748960802485,2.24689321,665.44,664.7,0.30088761]
[1748960804182,2.24689321,665.45,664.7,0.30088761]
[1748960804685,2.24689321,665.47,664.7,0.30088761]
[1748960806786,2.24689321,665.42,664.78,0.47637231]
[1748960806989,2.24689321,665.41,664.79,0.47637231]
[1748960807486,2.24689321,665.42,664.8,0.47637231]
[1748960807687,2.24689321,665.42,664.79,0.47637231]
[1748960808091,2.24689321,665.41,664.79,0.47637231]
[1748960808287,2.24689321,665.42,664.79,0.47637231]
[1748960808689,2.24689321,665.44,664.74,0.47637231]
[1748960808882,2.24689321,665.47,664.7,0.30088761]
[1748960809483,3.73597504,666.13,664.7,0.30088761]
[1748960809484,2.24689321,665.46,664.7,0.30088761]
[1748960810592,2.24689321,665.49,664.7,0.30088761]
[1748960810894,2.24689321,665.51,664.7,0.30088761]
[1748960811092,2.24689321,665.52,664.7,0.30088761]
[1748960811291,2.24689321,665.51,664.7,0.30088761]
[1748960811487,2.24689321,665.52,664.7,0.30088761]
[1748960811692,2.24689321,665.5,664.7,0.30088761]
[1748960812595,2.24689321,665.53,664.7,0.30088761]
[1748960812895,2.24689321,665.52,664.7,0.30088761]
[1748960813096,2.24689321,665.53,664.7,0.30088761]
[1748960813594,2.24689321,665.35,664.7,0.30088761]
[1748960813798,2.24689321,665.36,664.91,0.47637231]
[1748960813997,2.24689321,665.35,664.91,0.47637231]
[1748960814498,2.24689321,665.34,664.76,0.47637231]
[1748960814698,2.24689321,665.34,664.7,0.30088761]
[1748960814699,2.24689321,665.4,664.77,0.47637231]
[1748960814894,2.24689321,665.42,664.78,0.47637231]
[1748960815093,2.24689321,665.4,664.78,0.47637231]
[1748960815294,2.24689321,665.41,664.78,0.47637231]
[1748960815495,2.24689321,665.41,664.7,0.30088761]
[1748960815496,2.24689321,665.41,664.79,0.47637231]